Cogmind - Beta 15 @@@ ROGUE MODE // 2025.06.18 @ 23:23:29 Player: 7604 Result: Destroyed by RN-T3Z(R) with Subdweller Machine Gun Performance ------------- Evolutions (0) 0 Regions Visited (2) 400 Robots Destroyed (29) 145 Value Destroyed (516) 516 Prototype IDs (3) 60 Alien Tech Used (0) 0 Bonus (0) 0 TOTAL SCORE: 1121 Bonus ------- None Cogmind --------- Core Integrity 0/250 Matter 132/300 Energy 98/100 System Corruption 0% Temperature Cool (1) Movement Core (1400) Ox27 Location -10/Subcaves Parts ------- > --- POWER (1) -------- (None) > --- PROPULSION (2) --- (None) > --- UTILITY (2) ------ Huge Storage Unit Seismic Detector > --- WEAPON (2) ------- Assault Rifle > --- INVENTORY (25) --- Machine Analyzer Sensor Array Medium Armor Plating Medium Armor Plating Hacking Suite Medium Laser Medium Laser Assault Rifle Assault Rifle Assault Rifle Light Cannon Light Cannon Light Cannon Light Cannon Grenade Launcher Mining Laser Peak State ------------ > --- POWER ------------ Ion Engine > --- PROPULSION ------- Light Treads Light Treads > --- UTILITY ---------- Huge Storage Unit Medium Armor Plating > --- WEAPON ----------- Assault Rifle Grenade Launcher > --- INVENTORY -------- Light Ion Engine Machine Analyzer Sensor Array Seismic Detector Medium Armor Plating Medium Armor Plating Medium Armor Plating Hacking Suite Medium Laser Medium Laser Assault Rifle Assault Rifle Assault Rifle Assault Rifle Light Cannon Light Cannon Light Cannon Light Cannon Mining Laser [Rating: 10] Favorites ----------- Power Ion Engine Engine Ion Engine Propulsion Light Treads Treads Light Treads Leg Aluminum Leg Utility Seismic Detector Device Seismic Detector Storage Huge Storage Unit Protection Medium Armor Plating Weapon Assault Rifle Ballistic Gun Assault Rifle Launcher Grenade Launcher Build | -11 -10 -10 ------- Run | Yrd Mat Sub Slots Evolved . | . . . Power . | . . . Propulsion . | . . . Utility . | . . . Weapon . | . . . Parts Attached 15 | 1 7 7 Power 2 | . 1 1 Engine 2 | . 1 1 Core . | . . . Reactor . | . . . Propulsion 3 | . 3 . Treads 2 | . 2 . Leg 1 | . 1 . Wheel . | . . . Hover . | . . . Flight . | . . . Utility 7 | 1 3 3 Device 2 | 1 1 . Storage 2 | . 2 . Processor . | . . . Hackware . | . . . Protection 3 | . . 3 Artifact . | . . . Weapon 3 | . . 3 Energy Gun . | . . . Energy Cannon . | . . . Ballistic Gun 2 | . . 2 Ballistic Cannon . | . . . Launcher 1 | . . 1 Special Weapon . | . . . Impact Weapon . | . . . Slashing Weapon . | . . . Piercing Weapon . | . . . Special Melee Weapon . | . . . Unidentified Prototypes . | . . . Parts Lost 9 | . 2 7 Power 3 | . 1 2 Propulsion 2 | . . 2 Utility 3 | . 1 2 Weapon 1 | . . 1 Highest Loss Streak 3 | . 2 3 To Critical Strikes . | . . . Average Backups 13 | 6 12 16 Power . | 1 . . Propulsion 1 | 4 2 . Utility 4 | . 3 5 Weapon 6 | 1 5 11 Tool/Special . | . . . Unused Backups 20 | . 8 12 Power 1 | . 1 . Propulsion 3 | . 3 . Utility 6 | . 2 4 Weapon 10 | . 2 8 Tool/Special . | . . . Average Slot Usage (%) 91 | . 95 77 Engine 11 | . 13 3 Treads 13 | . 12 17 Leg 11 | . 15 . Device 10 | . 10 11 Storage 14 | . 14 14 Ballistic Gun 27 | . 28 26 Peak Build Rating 10 | 7 9 10 Average Rating 8 | 6 8 7 On Entrance 7 | 6 7 9 Naked Turns . | . . . Heaviest Build 97 | 13 90 97 Greatest Support 40 | 20 40 40 Greatest Overweight (x) 4 | . 2 4 Average Overweight (x) 1 | . 1 3 Largest Inventory Capacity 25 | 8 25 25 Average Capacity 20 | 8 18 25 Most Carried 20 | 7 19 20 Average Carried 13 | 6 12 16 Final Capacity 25 | 8 25 25 Final Carried 19 | 7 19 16 Class Distribution -------------------- 100% | Mutant Dominant Class ---------------- Mutant | -10/Materials Mutant | -10/Subcaves Resources | -11 -10 -10 ----------- Run | Yrd Mat Sub Matter Collected 798 | 222 480 96 Remotely . | . . . Salvage Created 683 | 81 499 103 Parts 60 | 7 39 14 Haulers Intercepted 2 | . 2 . Recyclers Shooed . | . . . Parts Field Recycled . | . . . Retrieved Matter . | . . . Parts Self-Destructed 13 | . . 13 Prevented . | . . . Kills | -11 -10 -10 ------- Run | Yrd Mat Sub Combat Hostiles Destroyed 17 | . 11 6 Guns 14 | . 11 3 AOE 3 | . . 3 Classes Destroyed 9 | 2 6 1 Tunneler 3 | 1 2 . Hauler 2 | . 2 . Recycler 1 | 1 . . Mechanic 1 | . 1 . Operator 1 | . 1 . Turret 2 | . . 2 Watcher 2 | . 2 . Swarmer 10 | . 6 4 Grunt 7 | . 5 2 Best Kill Streak 4 | 2 4 4 Combat Bots Only 4 | . 4 4 Max Kills in Single Turn 3 | 1 2 3 Gunslinging 1 | . 1 . Exploded 3 | . . 3 Melee . | . . . Uniques/NPCs Destroyed . | . . . Combat | -11 -10 -10 -------- Run | Yrd Mat Sub Hostile Shots Fired 226 | . 55 171 Missed 68 | . 9 59 Hits 158 | . 46 112 Projectile 158 | . 46 112 Critical Strikes 1 | . . 1 Damage Taken 1459 | . 497 962 Core 261 | . 108 153 Absorbed by Shields . | . . . Core Remaining (%) 100 | 100 . . Volleys Fired 103 | 2 71 30 Largest 2 | 2 2 2 Hottest 40 | 40 40 40 Shots Fired 197 | 4 142 51 Gun 189 | 4 142 43 Cannon . | . . . Launcher 8 | . . 8 Special . | . . . Kinetic 189 | 4 142 43 Thermal . | . . . Explosive 8 | . . 8 Electromagnetic . | . . . Robot Hit Streak 9 | 3 8 9 Robot Miss Streak 6 | . 6 3 Penetration Max . | . . . Secondary Targets 3 | . 2 1 Max Gunslinging Chain 1 | . 1 1 Shots Hit Robots 117 | 3 86 28 Core Hits 49 | 3 29 17 Critical Kills . | . . . Critical Parts Destroyed . | . . . Critical Strikes . | . . . Melee Attacks . | . . . Impact . | . . . Slashing . | . . . Piercing . | . . . Sneak Attacks . | . . . Combat Hostiles . | . . . Follow-up Attacks . | . . . Damage Inflicted 1851 | 38 1118 695 Guns 1500 | 38 1087 375 Cannons . | . . . Explosions 320 | . . 320 Melee . | . . . Ramming 31 | . 31 . Kinetic 1500 | 38 1087 375 Thermal . | . . . Explosive 320 | . . 320 Electromagnetic . | . . . Impact . | . . . Slashing . | . . . Piercing . | . . . Highest Corruption . | . . . Average Corruption . | . . . Corruption Purged . | . . . Corruption Blocked . | . . . Overload Shots . | . . . Overflow Damage 5 | . . 5 Projectiles . | . . . Explosions 5 | . . 5 Melee . | . . . Knockbacks 1 | . 1 . Impact 1 | . 1 . Kinetic . | . . . Secondary . | . . . Self-Inflicted Damage 38 | . . 38 Shots 2 | . . 2 Rammed 2 | . 2 . Targets Rammed 6 | . 6 . Kicked 4 | . 4 . Crushed . | . . . Highest Temperature 8 | . 2 8 Average Temperature 2 | . 2 3 Received Heat Transfer 720 | . 174 546 Siege Activations . | . . . Martial Activations . | . . . Shielding Activations . | . . . Robots Disrupted . | . . . Combat Hostiles . | . . . Robots Corrupted . | . . . Combat Hostiles . | . . . Parts Fried . | . . . Impact Corruptions . | . . . Robots Melted . | . . . Combat Hostiles . | . . . Parts Melted . | . . . Heat Transferred . | . . . Parts Sabotaged . | . . . Parts Stolen . | . . . Parts Stripped . | . . . Power Chain Reactions . | . . . Alert | -11 -10 -10 ------- Run | Yrd Mat Sub Maximum Alert Level . | . . . Low Security (%) 100 | 100 100 . Level 1 . | . . . Level 2 . | . . . Level 3 . | . . . Level 4 . | . . . Level 5 . | . . . High Security . | . . . Max Security . | . . . Peak Influence 135 | 10 135 . Initial . | . . . Average 14 | 7 14 . Influence Increases 628 | 10 388 230 Destroy 0b10 Robot/C 380 | . 220 160 Destroy 0b10 Robot/NC 50 | 10 40 . Destroy Leader 48 | . 38 10 Successful Hack 45 | . 45 . Select Force Hacks 30 | . 30 . Lose Combat Pursuer 75 | . 15 60 Influence Decreases 628 | 10 388 230 Time Decay 558 | 10 368 180 Lost Part 70 | . 20 50 Squads Dispatched 1 | . 1 . Investigation 1 | . 1 . Extermination . | . . . Reinforcement . | . . . Assault . | . . . Garrison . | . . . Intercept . | . . . Searches Triggered . | . . . Construction Impeded . | . . . Haulers Reinforced . | . . . Active Scanning Responses . | . . . Cargo Convoy Interrupts . | . . . Stealth | -11 -10 -10 --------- Run | Yrd Mat Sub Distress Signals 3 | . 3 . Communications Jammed . | . . . Distress Signals . | . . . Times Spotted 40 | . 27 13 Peak Tracking Total 6 | . 4 6 Tactical Retreats 3 | . 1 2 Traps | -11 -10 -10 ------- Run | Yrd Mat Sub Traps Triggered 2 | . 1 1 Indirectly . | . . . Trap Hack Attempts . | . . . Triggered . | . . . Disarmed . | . . . Reprogrammed . | . . . Reused . | . . . Traps Extracted . | . . . Installed . | . . . Triggered . | . . . Machines | -11 -10 -10 ---------- Run | Yrd Mat Sub Machines Disabled 2 | . . 2 Max in Single Turn 1 | . . 1 Machines Repaired . | . . . Machines Dismantled . | . . . Machines Sabotaged . | . . . Overloaded Fab Kills . | . . . Hacking | -11 -10 -10 --------- Run | Yrd Mat Sub Machines Accessed 10 | . 10 . Terminals 8 | . 8 . Fabricators . | . . . Repair Stations . | . . . Recycling Units 2 | . 2 . Scanalyzers . | . . . Garrison Access . | . . . Total Hacks 34 | . 34 . Successful 19 | . 19 . Failed 15 | . 15 . Catastrophic 1 | . 1 . Database Lockouts . | . . . Manual 22 | . 22 . Terminals 27 | . 27 . Fabricators . | . . . Repair Stations . | . . . Recycling Units 7 | . 7 . Scanalyzers . | . . . Garrison Access . | . . . Terminal Hacks 9 | . 9 . Robot Schematic 1 | . 1 . Robot Analysis 2 | . 2 . Prototype ID Bank 3 | . 3 . Locate Traps 3 | . 3 . Fabricator Hacks . | . . . Repair Station Hacks . | . . . Recycling Unit Hacks 2 | . 2 . Retrieve Components 2 | . 2 . Scanalyzer . | . . . Garrison Access Hacks . | . . . Unauthorized Hacks 8 | . 8 . Terminals 7 | . 7 . Botnet 1 | . 1 . Operators 1 | . 1 . Skim 5 | . 5 . Fabricators . | . . . Repair Stations . | . . . Recycling Units 1 | . 1 . Tunnel 1 | . 1 . Scanalyzers . | . . . Garrison Access . | . . . Data Cores Recovered 1 | . 1 . Used . | . . . Hacking Detections 9 | . 9 . Full Trace Events 1 | . 1 . Feedback Events . | . . . Feedback Blocked . | . . . Robot Schematics Acquired 1 | . 1 . Robots Built . | . . . Authchips . | . . . Time . | . . . Total Robot Build Rating . | . . . Part Schematics Acquired . | . . . Parts Built . | . . . Authchips . | . . . Time . | . . . Total Part Build Rating . | . . . Parts Repaired . | . . . Time . | . . . Parts Recycled . | . . . Recycled Matter . | . . . Retrieved Matter . | . . . Retrieved Components 12 | . 12 . Parts Scanalyzed . | . . . Part Schematics Acquired . | . . . Parts Damaged . | . . . Bothacking | -11 -10 -10 ------------ Run | Yrd Mat Sub Used RIF Installer . | . . . Robots Hacked . | . . . Non-combat . | . . . Combat . | . . . Robot Hacks Applied . | . . . Relay Couplers Released . | . . . Fabnet Peak Effective % . | . . . Robots Rewired . | . . . Allies Hacked . | . . . Hacks Repelled . | . . . Allies | -11 -10 -10 -------- Run | Yrd Mat Sub Total Allies . | . . . Largest Group . | . . . Highest-Rated Group . | . . . Highest-Rated Ally . | . . . Total Orders . | . . . Ally Attacks . | . . . Total Damage . | . . . Kills . | . . . Allies Corrupted . | . . . Allies Melted . | . . . Intel | -11 -10 -10 ------- Run | Yrd Mat Sub Active Infowar (turns) 2467 | 10 1836 621 Seismic 2467 | 10 1836 621 Robot Analysis Total 2 | . 2 . Derelict Logs Recovered 1 | . . 1 Drone Launches . | . . . Drone Recoveries . | . . . Exploration | -11 -10 -10 ------------- Run | Yrd Mat Sub Turns Passed 3339 | 23 2542 774 Spaces Moved 1112 | 13 944 155 Core . | . . . Treads 529 | . 374 155 Legs 583 | 13 570 . Wheels . | . . . Hover . | . . . Flight . | . . . Fastest Speed 120 | 120 120 320 Average Speed 253 | 120 224 439 Slowest Speed 480 | 120 320 480 Overloaded Moves . | . . . Propulsion Burnouts . | . . . Robots Hopped . | . . . Potential Cave-ins . | . . . Cave-ins Triggered . | . . . Exploration Rate (%) 36 | 3 96 10 Regions Visited 2 Branch Regions 1 Pre-discovered Areas 3 | . 3 . Known Exits Taken . | . . . Unknown Exits Taken 2 | 1 1 . Scrap Searched . | . . . Spaces Dug 7 | . . 7 Terrain Destroyed 17 | . . 17 Melee . | . . . Projectile . | . . . AOE 17 | . . 17 Terrain Rammed . | . . . Walls Destroyed . | . . . Machines Disabled . | . . . Actions | -11 -10 -10 --------- Run | Yrd Mat Sub Total 1437 | 16 1222 199 Wait 173 | . 169 4 Move 1110 | 12 943 155 Hop . | . . . Pick Up 18 | 1 17 . Fast Attach 4 | 1 3 . Attach 6 | . 2 4 Detach 2 | . 1 1 Swap 9 | . 4 5 Drop 6 | . 6 . Fire 103 | 2 71 30 Melee . | . . . Ram . | . . . Kick 4 | . 4 . Crush 2 | . 2 . Escape Stasis . | . . . Rewire . | . . . Trap . | . . . Miscellaneous . | . . . Route ------- -11/Scrapyard -10/Materials (discovered 5 exits: *Mat x3 / [*Min] / [*Sub]) -10/Subcaves (discovered 3 exits: Mat x2 / *Rec) History --------- Turn | Location | Event 7 | -11/Scrapyard | Discovered new exit (range 3) 24 | -11/Scrapyard | Entered Materials 306 | -10/Materials | Build established: Mutant 436 | -10/Materials | Discovered new exit (range 10) 594 | -10/Materials | Discovered new exit (range 6) 764 | -10/Materials | Discovered new exit (range 14) 1528 | -10/Materials | Discovered new exit (range 16) 1546 | -10/Materials | Learned 4 Recycling zone layouts 1598 | -10/Materials | Learned location of Subcaves (-10) 1641 | -10/Materials | Identified exit to Materials 1691 | -10/Materials | Learned 2 Materials zone layouts 1716 | -10/Materials | Learned location of 2 exits from Subcaves 1742 | -10/Materials | Learned 4 Recycling zone layouts 1779 | -10/Materials | Learned 4 Materials zone layouts 2540 | -10/Materials | Discovered new exit (range 9) 2566 | -10/Materials | Entered Subcaves 2567 | -10/Subcaves | Identified exit to Recycling 2568 | -10/Subcaves | Identified exit to Materials 2602 | -10/Subcaves | Learned 4 Materials zone layouts 2686 | -10/Subcaves | Core integrity fell below 50% 2736 | -10/Subcaves | Core integrity fell below 20% 2814 | -10/Subcaves | Lost 3 parts (1p1n1u) 3340 | -10/Subcaves | Ambushed by Subdweller buried in earth 3340 | -10/Subcaves | Destroyed by RN-T3Z(R) with Subdweller Machine Gun Last Messages --------------- 02777_ G-47 Trooper destroyed. 02780_ Subatomizers dissect the Particle Gun. 02783_ Med. Armor Plating destroyed. 02783_ G-34 Mercenary destroyed. 02787_ Aluminum Leg fries itself beyond repair. 02787_ Heat Sink fries itself beyond repair. 02788_ Particle Gun fries itself beyond repair. 02791_ Subatomizers dissect the Ion Engine. 02793_ Sml. Laser fries itself beyond repair. 02793_ Acquired 48 matter. 02797_ Aluminum Leg fries itself beyond repair. 02798_ Acquired 37 matter. 02799_ Ion Engine fries itself beyond repair. 02839_ The unstable cave ceiling collapses. 03316_ Acquired 8 matter. 03340_ Triggered Shrapnel Trap. 03340_ An expanding cloud of shrapnel blasts out in all directions. 03340_ Assault Rifle destroyed. 03340_ Lgt. Treads destroyed. Map ----- +----------------------------------------------------+ | ???#> #??????????????? | | ????#" ##??????????????? | | ????# # ##### # ### #???????????????? | | ????#" ###????## ### ##??????????????? | | ????#"" "##??????# ### #??????????????? | | ??????####?????????# # #??????????????? | | ???????????????????## #??????????????? | | ???????????????????# #??????????????? | | ???????????????????# ^ ##??????????????? | | ???????????????????## ^ ##???????????????? | | ???????????? #????## #????????????????? | | ??????????? #??## ##???????????????? | | ???????????? ### ###?????????????? | | ????????????# ### #?????????????? | | ????????????## % ^ % #??# #?????????????? | | ?????????????## ##?## #?????????????? | | ??????????????## u #?## #?????????????? | | ???????????????# %#?# #?????????????? | | ?????????#### ## ### ##?????????????? | | ????????? " #??????????????? | | ?????????""% % ^ ^ #??????????????? | | ??????????# % ##??????????????? | | ?????????????### # #####??????????????? | | ??????????????# ??#### ;;;;#??????????????? | | ?????????????????????##; ;#??????????????? | | ??????????????????????#;;@ #??????????????? | | ??????????????????????# R; ;#??????????????? | | ??????????????????????# ;;;##??????????????? | | ??????????????????????#######???????????????? | | ????????????????????????????????????????????? | | ????????????????????????????????????????????? | | ????????????????????????????????????????????? | | ????????????????????????????????????????????? | | ????????????????????????????????????????????? | | ????????????????????????????????????????????? | | ????????????????????????????????????????????? | | ????????????????????????????????????????????? | | ????????????????????????????????????????????? | | ????????????????????????????????????????????? | | ????????????????????????????????????????????? | | ????????????????????????????????????????????? | | ????????????????????????????????????????????? | | ????????????????????????????????????????????? | | ????????????????????????????????????????????? | | ????????????????????????????????????????????? | | ????????????????????????????????????????????? | | ????????????????????????????????????????????? | | ????????????????????????????????????????????? | | ????????????????????????????????????????????? | | ????????????????????????????????????????????? | +----------------------------------------------------+ Best States ------------- Heat Dissipation 25 Energy Generation 10 Energy Capacity 250 Matter Stores 300 Matter Capacity 300 Sight Range 16 Terrain Scan Density 10 Armor Coverage 225 Evasion (%) 50 Recoil Reduction 2 Item Schematics ----------------- None Robot Schematics ------------------ M-13 Machinist | -10/Materials | Hacked Fabricated ------------ Nothing Repaired ---------- Nothing Alien Tech Used ----------------- None Achievements -------------- None Challenges ------------ None Game ------ Seed ActuatorHypercooledLegs Manual? 0 Play Time 00:16:05 Cumulative 458.3 hours Start 2025.06.18 @ 23:08:12 End 2025.06.18 @ 23:23:29 Sessions 1 Manual Loads 0 Difficulty Rogue Special Mode None Game No. 241 Rogue 178 Adventurer 63 Explorer 0 Win Type - Total 9 Types 8/0/0/1/0/0/0/0/0/0 Lore% 89 Gallery% 80 Achievement% 66 Wizard Run 0 Options --------- Layout 1 ASCII 0 Keyboard 1 Movement Numpad Keybinds 0 Fullscreen 1 Font 24/Terminus Map View 50x35 Zoom Use 0% Tactical HUD 1 Map Filters NONE Filters NONE Steam 1 RUN: c3bdf510-7e27-4ce8-a437-a648852b7966